lending/lending_fUSD_20250425
["ID","MTS","AMOUNT","RATE_DAILY","PERIOD"]
[358964002,1745592632955,-749.2210027,0.00035606,2]
[358964003,1745592632966,-2445.75038882,0.00035606,2]
[358964014,1745592638035,-159700.5104852,0.00035606,2]
[358964015,1745592638063,-956.0,0.00035606,2]
[358964016,1745592638081,-10136.16736769,0.00035606,2]
[358964017,1745592638098,-895.89499998,0.00035606,2]
[358964018,1745592638123,-584.78514729,0.00035606,2]
[358964019,1745592638301,-396.29552,0.00035606,2]
[358964040,1745592639876,-1563.46598488,0.00035606,2]
[358964043,1745592639890,-329.81653893,0.00035606,2]
[358964044,1745592639907,-277.595,0.00035606,2]
[358964048,1745592639993,-567.00631094,0.00035606,2]
[358964053,1745592640695,-151.0,0.00034253,2]
[358964054,1745592640706,-4301.49717128,0.00035606,2]
[358964055,1745592640718,-28588.60000002,0.00035606,2]
[358964057,1745592640730,-764.8,0.00035606,2]
[358964064,1745592640791,-1262.3450472,0.00035606,2]
[358964067,1745592640803,-4769.5729551,0.00035606,2]
[358964069,1745592640818,-1729.85740307,0.00035606,2]
[358964077,1745592640852,-327.179705,0.00035606,2]
[358964080,1745592640864,-2126.4415,0.00035606,2]
[358964082,1745592640876,-1000.0,0.00035606,2]
[358964084,1745592640888,-2910.02301602,0.00035606,2]
[358964217,1745592643200,-4524.92489908,0.00035606,2]
[358964218,1745592643308,-134322.17951516,0.00035606,2]
[358964219,1745592643318,-474153.180286,0.00035606,2]
[358964220,1745592643328,-276.67047369,0.00035606,2]
[358964221,1745592643339,-500.0,0.00035616,2]
[358964222,1745592643349,-500.0,0.00035616,2]
[358964223,1745592643360,-500.0,0.00035616,2]
[358964224,1745592643370,-500.0,0.00035616,2]
[358964225,1745592643381,-347.97617238,0.00035616,2]
[358964226,1745592643390,-500.0,0.00035616,2]
[358964227,1745592643401,-500.0,0.00035616,2]
[358964228,1745592643411,-500.0,0.00035616,2]
[358964229,1745592643421,-609.62744073,0.00035616,2]
[358964230,1745592643431,-605.81017872,0.00035616,2]
[358964231,1745592643442,-500.0,0.00035616,2]
[358964232,1745592643452,-1086.5,0.00035616,2]
[358964233,1745592643462,-500.0,0.00035616,2]
[358964234,1745592643472,-500.0,0.00035616,2]
[358964235,1745592643482,-500.0,0.00035616,2]
[358964236,1745592643492,-500.0,0.00035616,2]
[358964237,1745592643502,-500.0,0.00035616,2]
[358964238,1745592643512,-500.0,0.00035616,2]
[358964239,1745592643522,-1210.41,0.00035616,2]
[358964240,1745592643532,-500.0,0.00035616,2]
[358964241,1745592643542,-500.0,0.00035616,2]
[358964242,1745592643552,-500.0,0.00035616,2]
[358964243,1745592643565,-500.0,0.00035616,2]
[358964244,1745592643575,-500.0,0.00035616,2]
[358964245,1745592643585,-500.0,0.00035616,2]
[358964246,1745592643594,-500.0,0.00035616,2]
[358964247,1745592643605,-500.0,0.00035616,2]
[358964248,1745592643619,-500.0,0.00035616,2]
[358964249,1745592643629,-500.0,0.00035616,2]
[358964250,1745592643639,-507.88169253,0.00035616,2]
[358964251,1745592643650,-500.0,0.00035616,2]
[358964252,1745592643660,-500.0,0.00035616,2]
[358964253,1745592643671,-500.0,0.00035616,2]
[358964254,1745592643681,-500.0,0.00035616,2]
[358964255,1745592643693,-643.47836793,0.00035616,2]
[358964256,1745592643704,-187.68261453,0.00035616,2]
[358964257,1745592643714,-500.0,0.00035616,2]
[358964258,1745592643724,-500.0,0.00035616,2]
[358964259,1745592643734,-500.0,0.00035616,2]
[358964260,1745592643744,-1393.51,0.00035616,2]
[358964261,1745592643754,-500.0,0.00035616,2]
[358964262,1745592643765,-247.43427896,0.00035616,2]
[358964263,1745592643775,-500.0,0.00035616,2]
[358964264,1745592643785,-500.0,0.00035616,2]
[358964265,1745592643795,-500.0,0.00035616,2]
[358964266,1745592643808,-500.0,0.00035616,2]
[358964267,1745592643818,-544.3344233,0.00035616,2]
[358964268,1745592643828,-500.0,0.00035616,2]
[358964269,1745592643838,-500.0,0.00035616,2]
[358964270,1745592643848,-359.04658068,0.00035616,2]
[358964271,1745592643858,-500.0,0.00035616,2]
[358964272,1745592643868,-500.0,0.00035616,2]
[358964273,1745592643879,-500.0,0.00035616,2]
[358964274,1745592643890,-922.01,0.00035616,2]
[358964275,1745592643900,-500.0,0.00035616,2]
[358964276,1745592643911,-500.0,0.00035616,2]
[358964277,1745592643922,-500.0,0.00035616,2]
[358964278,1745592643932,-500.0,0.00035616,2]
[358964279,1745592643943,-500.0,0.00035616,2]
[358964280,1745592643954,-500.0,0.00035616,2]
[358964281,1745592643964,-500.0,0.00035616,2]
[358964282,1745592643974,-500.0,0.00035616,2]
[358964283,1745592643985,-500.0,0.00035616,2]
[358964284,1745592643995,-500.0,0.00035616,2]
[358964285,1745592644008,-500.0,0.00035616,2]
[358964286,1745592644019,-500.0,0.00035616,2]
[358964287,1745592644029,-560.92137211,0.00035616,2]
[358964288,1745592644039,-500.0,0.00035616,2]
[358964289,1745592644052,-500.0,0.00035616,2]
[358964290,1745592644064,-595.07455108,0.00035616,2]
[358964291,1745592644074,-500.0,0.00035616,2]
[358964292,1745592644085,-500.0,0.00035616,2]
[358964293,1745592644097,-535.39632257,0.00035616,2]
[358964294,1745592644109,-997.84,0.00035616,2]
[358964295,1745592644120,-500.0,0.00035616,2]
[358964296,1745592644131,-500.0,0.00035616,2]
[358964297,1745592644144,-500.0,0.00035616,2]
[358964298,1745592644154,-500.0,0.00035616,2]
[358964300,1745592644164,-500.0,0.00035616,2]
[358964302,1745592644174,-500.0,0.00035616,2]
[358964304,1745592644184,-500.0,0.00035616,2]
[358964328,1745592644194,-500.0,0.00035616,2]
[358964338,1745592644479,-500.0,0.00035616,2]
[358964340,1745592644489,-500.0,0.00035616,2]
[358964342,1745592644498,-500.0,0.00035616,2]
[358964344,1745592644508,-500.0,0.00035616,2]
[358964346,1745592644518,-841.63,0.00035616,2]
[358964348,1745592644529,-500.0,0.00035616,2]
[358964350,1745592644539,-500.0,0.00035616,2]
[358964352,1745592644548,-535.60154908,0.00035616,2]
[358964354,1745592644562,-500.0,0.00035616,2]
[358964356,1745592644572,-500.0,0.00035616,2]
[358964358,1745592644582,-500.0,0.00035616,2]
[358964360,1745592644591,-500.0,0.00035616,2]
[358964362,1745592644601,-500.0,0.00035616,2]
[358964364,1745592644615,-560.43492835,0.00035616,2]
[358964366,1745592644626,-522.84,0.00035616,2]
[358964368,1745592644639,-538.99631105,0.00035616,2]
[358964370,1745592644648,-500.0,0.00035616,2]
[358964372,1745592644659,-500.0,0.00035616,2]
[358964374,1745592644669,-500.0,0.00035616,2]
[358964377,1745592644680,-500.0,0.00035616,2]
[358964379,1745592644691,-500.0,0.00035616,2]
[358964381,1745592644701,-500.0,0.00035616,2]
[358964383,1745592644711,-500.0,0.00035616,2]
[358964385,1745592644721,-311.43833684,0.00035616,2]
[358964387,1745592644731,-500.0,0.00035616,2]
[358964389,1745592644740,-1515.04,0.00035616,2]
[358964391,1745592644751,-1030.81,0.00035616,2]
[358964393,1745592644760,-500.0,0.00035616,2]
[358964395,1745592644769,-500.0,0.00035616,2]
[358964397,1745592644779,-500.0,0.00035616,2]
[358964399,1745592644789,-500.0,0.00035616,2]
[358964401,1745592644800,-500.0,0.00035616,2]
[358964403,1745592644810,-1029.95,0.00035616,2]
[358964405,1745592644823,-500.0,0.00035616,2]
[358964407,1745592644833,-518.80920241,0.00035616,2]
[358964409,1745592644843,-500.0,0.00035616,2]
[358964410,1745592644853,-544.81912869,0.00035616,2]
[358964411,1745592644864,-661.65,0.00035616,2]
[358964412,1745592644874,-511.81243235,0.00035616,2]
[358964413,1745592644884,-500.0,0.00035616,2]
[358964414,1745592644895,-500.0,0.00035616,2]
[358964415,1745592644905,-500.0,0.00035616,2]
[358964416,1745592644915,-500.0,0.00035616,2]
[358964417,1745592644926,-500.0,0.00035616,2]
[358964418,1745592644936,-500.0,0.00035616,2]
[358964419,1745592644946,-500.0,0.00035616,2]
[358964420,1745592644956,-511.9132304,0.00035616,2]
[358964421,1745592644966,-500.0,0.00035616,2]
[358964422,1745592644976,-500.0,0.00035616,2]
[358964424,1745592644986,-503.9,0.00035616,2]
[358964425,1745592644995,-517.24519851,0.00035616,2]
[358964427,1745592645006,-500.0,0.00035616,2]
[358964429,1745592645015,-500.0,0.00035616,2]
[358964432,1745592645025,-1000.0,0.00035616,2]
[358964434,1745592645035,-500.0,0.00035616,2]
[358964436,1745592645045,-500.0,0.00035616,2]
[358964438,1745592645055,-500.0,0.00035616,2]
[358964440,1745592645067,-500.0,0.00035616,2]
[358964442,1745592645076,-500.0,0.00035616,2]
[358964443,1745592645086,-500.0,0.00035616,2]
[358964445,1745592645095,-500.0,0.00035616,2]
[358964448,1745592645105,-500.0,0.00035616,2]
[358964450,1745592645116,-500.0,0.00035616,2]
[358964452,1745592645126,-500.0,0.00035616,2]
[358964454,1745592645136,-522.94623392,0.00035616,2]
[358964456,1745592645146,-500.0,0.00035616,2]
[358964458,1745592645155,-500.0,0.00035616,2]
[358964460,1745592645166,-620.57888061,0.00035616,2]
[358964462,1745592645176,-500.0,0.00035616,2]
[358964464,1745592645185,-554.38193091,0.00035616,2]
[358964466,1745592645195,-500.0,0.00035616,2]
[358964468,1745592645205,-1097.21,0.00035616,2]
[358964470,1745592645215,-500.0,0.00035616,2]
[358964472,1745592645225,-500.0,0.00035616,2]
[358964474,1745592645234,-1155.08,0.00035616,2]
[358964476,1745592645244,-500.0,0.00035616,2]
[358964478,1745592645254,-593.9301326,0.00035616,2]
[358964480,1745592645265,-500.0,0.00035616,2]
[358964482,1745592645274,-500.0,0.00035616,2]
[358964484,1745592645284,-500.0,0.00035616,2]
[358964486,1745592645294,-171.71266856,0.00035616,2]
[358964489,1745592645308,-500.0,0.00035616,2]
[358964491,1745592645318,-500.0,0.00035616,2]
[358964493,1745592645328,-630.35,0.00035616,2]
[358964495,1745592645338,-500.0,0.00035616,2]
[358964497,1745592645348,-523.8180209,0.00035616,2]
[358964499,1745592645358,-500.0,0.00035616,2]
[358964501,1745592645367,-500.0,0.00035616,2]
[358964503,1745592645377,-500.0,0.00035616,2]
[358964505,1745592645387,-500.0,0.00035616,2]
[358964507,1745592645397,-500.0,0.00035616,2]
[358964509,1745592645406,-500.0,0.00035616,2]
[358964511,1745592645415,-500.0,0.00035616,2]
[358964513,1745592645426,-500.0,0.00035616,2]
[358964515,1745592645436,-925.27,0.00035616,2]
[358964517,1745592645445,-500.0,0.00035616,2]
[358964519,1745592645455,-500.0,0.00035616,2]
[358964522,1745592645464,-500.0,0.00035616,2]
[358964524,1745592645474,-516.07147534,0.00035616,2]
[358964526,1745592645484,-500.0,0.00035616,2]
[358964528,1745592645494,-500.0,0.00035616,2]
[358964530,1745592645503,-500.0,0.00035616,2]
[358964532,1745592645513,-500.0,0.00035616,2]
[358964534,1745592645522,-500.0,0.00035616,2]
[358964536,1745592645532,-500.0,0.00035616,2]
[358964538,1745592645542,-500.0,0.00035616,2]
[358964540,1745592645552,-473.31210108,0.00035616,2]
[358964542,1745592645564,-500.0,0.00035616,2]
[358964544,1745592645574,-669.47,0.00035616,2]
[358964546,1745592645584,-500.0,0.00035616,2]
[358964548,1745592645594,-1069.04,0.00035616,2]
[358964550,1745592645604,-500.0,0.00035616,2]
[358964553,1745592645617,-500.0,0.00035616,2]
[358964555,1745592645627,-812.51,0.00035616,2]
[358964557,1745592645638,-569.21,0.00035616,2]
[358964559,1745592645648,-856.09,0.00035616,2]
[358964561,1745592645660,-500.0,0.00035616,2]
[358964563,1745592645670,-500.0,0.00035616,2]
[358964565,1745592645679,-500.0,0.00035616,2]
[358964567,1745592645691,-500.0,0.00035616,2]
[358964569,1745592645701,-532.96747355,0.00035616,2]
[358964571,1745592645711,-621.13,0.00035616,2]
[358964573,1745592645720,-527.36830734,0.00035616,2]
[358964575,1745592645730,-500.0,0.00035616,2]
[358964577,1745592645739,-500.0,0.00035616,2]
[358964579,1745592645749,-500.0,0.00035616,2]
[358964581,1745592645759,-500.0,0.00035616,2]
[358964583,1745592645769,-500.0,0.00035616,2]
[358964585,1745592645779,-500.0,0.00035616,2]
[358964587,1745592645788,-500.0,0.00035616,2]
[358964589,1745592645797,-500.0,0.00035616,2]
[358964591,1745592645811,-500.0,0.00035616,2]
[358964593,1745592645821,-500.0,0.00035616,2]
[358964596,1745592645831,-500.0,0.00035616,2]
[358964599,1745592645840,-500.0,0.00035616,2]
[358964602,1745592645850,-500.0,0.00035616,2]
[358964605,1745592645860,-500.0,0.00035616,2]
[358964607,1745592645869,-500.0,0.00035616,2]
[358964610,1745592645879,-500.0,0.00035616,2]
[358964612,1745592645888,-500.0,0.00035616,2]
[358964614,1745592645899,-500.0,0.00035616,2]
[358964616,1745592645908,-500.0,0.00035616,2]
[358964618,1745592645918,-500.0,0.00035616,2]
[358964620,1745592645927,-551.30699805,0.00035616,2]
[358964622,1745592645937,-810.19,0.00035616,2]
[358964624,1745592645946,-500.0,0.00035616,2]
[358964626,1745592645956,-288.75025776,0.00035616,2]
[358964628,1745592645966,-500.0,0.00035616,2]
[358964631,1745592645975,-500.0,0.00035616,2]
[358964634,1745592645985,-500.0,0.00035616,2]
[358964636,1745592645994,-824.51,0.00035616,2]
[358964638,1745592646004,-500.0,0.00035616,2]
[358964640,1745592646014,-500.0,0.00035616,2]
[358964642,1745592646023,-500.0,0.00035616,2]
[358964644,1745592646034,-500.0,0.00035616,2]
[358964646,1745592646044,-549.12,0.00035616,2]
[358964649,1745592646053,-500.0,0.00035616,2]
[358964651,1745592646066,-500.0,0.00035616,2]
[358964653,1745592646075,-500.0,0.00035616,2]
[358964655,1745592646085,-520.35274202,0.00035616,2]
[358964657,1745592646095,-500.0,0.00035616,2]
[358964659,1745592646105,-500.0,0.00035616,2]
[358964661,1745592646114,-500.0,0.00035616,2]
[358964663,1745592646124,-500.0,0.00035616,2]
[358964665,1745592646134,-386.40983222,0.00035616,2]
[358964667,1745592646144,-500.0,0.00035616,2]
[358964669,1745592646153,-500.0,0.00035616,2]
[358964671,1745592646163,-500.0,0.00035616,2]
[358964673,1745592646172,-1136.67,0.00035616,2]
[358964675,1745592646182,-512.73,0.00035616,2]
[358964677,1745592646191,-500.0,0.00035616,2]
[358964679,1745592646200,-565.61915449,0.00035616,2]
[358964681,1745592646210,-500.0,0.00035616,2]
[358964683,1745592646220,-500.0,0.00035616,2]
[358964685,1745592646230,-500.0,0.00035616,2]
[358964687,1745592646239,-500.0,0.00035616,2]
[358964689,1745592646249,-500.0,0.00035616,2]
[358964692,1745592646259,-500.0,0.00035616,2]
[358964694,1745592646268,-553.9462189,0.00035616,2]
[358964696,1745592646278,-2486.33,0.00035616,2]
[358964698,1745592646288,-500.0,0.00035616,2]
[358964700,1745592646298,-500.0,0.00035616,2]
[358964702,1745592646309,-500.0,0.00035616,2]
[358964704,1745592646319,-437.03022952,0.00035616,2]
[358964706,1745592646329,-521.82237146,0.00035616,2]
[358964708,1745592646339,-500.0,0.00035616,2]
[358964710,1745592646349,-500.0,0.00035616,2]
[358964712,1745592646359,-500.0,0.00035616,2]
[358964714,1745592646369,-500.0,0.00035616,2]
[358964716,1745592646379,-536.16701576,0.00035616,2]
[358964719,1745592646388,-503.17,0.00035616,2]
[358964721,1745592646398,-520.05410765,0.00035616,2]
[358964723,1745592646408,-500.0,0.00035616,2]
[358964725,1745592646417,-500.0,0.00035616,2]
[358964727,1745592646426,-398.89629351,0.00035616,2]
[358964729,1745592646437,-500.0,0.00035616,2]
[358964731,1745592646447,-584.8,0.00035616,2]
[358964733,1745592646456,-500.0,0.00035616,2]
[358964735,1745592646466,-233.90237813,0.00035616,2]
[358964737,1745592646476,-647.7,0.00035616,2]
[358964739,1745592646486,-500.0,0.00035616,2]
[358964741,1745592646496,-500.0,0.00035616,2]
[358964743,1745592646505,-936.78,0.00035616,2]
[358964745,1745592646515,-500.0,0.00035616,2]
[358964747,1745592646524,-556.66508019,0.00035616,2]
[358964750,1745592646534,-500.0,0.00035616,2]
[358964752,1745592646545,-513.040522,0.00035616,2]
[358964754,1745592646555,-522.71033533,0.00035616,2]
[358964756,1745592646566,-500.0,0.00035616,2]
[358964758,1745592646576,-500.0,0.00035616,2]
[358964760,1745592646585,-516.95813337,0.00035616,2]
[358964762,1745592646595,-500.0,0.00035616,2]
[358964764,1745592646605,-500.0,0.00035616,2]
[358964766,1745592646617,-533.32464691,0.00035616,2]
[358964768,1745592646627,-528.0140218,0.00035616,2]
[358964770,1745592646636,-617.54,0.00035616,2]
[358964772,1745592646646,-570.73863649,0.00035616,2]
[358964774,1745592646656,-933.41,0.00035616,2]
[358964776,1745592646666,-1116.92,0.00035616,2]
[358964778,1745592646677,-1105.45,0.00035616,2]
[358964780,1745592646689,-500.0,0.00035616,2]
[358964783,1745592646698,-500.0,0.00035616,2]
[358964785,1745592646708,-500.0,0.00035616,2]
[358964787,1745592646718,-1277.62,0.00035616,2]
[358964789,1745592646727,-500.0,0.00035616,2]
[358964791,1745592646737,-500.0,0.00035616,2]
[358964793,1745592646747,-500.0,0.00035616,2]
[358964795,1745592646758,-679.79,0.00035616,2]
[358964798,1745592646767,-500.0,0.00035616,2]
[358964800,1745592646777,-678.37,0.00035616,2]
[358964802,1745592646787,-961.64,0.00035616,2]
[358964804,1745592646797,-500.0,0.00035616,2]
[358964806,1745592646806,-500.0,0.00035616,2]
[358964808,1745592646816,-543.55589988,0.00035616,2]
[358964810,1745592646826,-500.0,0.00035616,2]
[358964812,1745592646836,-500.0,0.00035616,2]
[358964814,1745592646845,-500.0,0.00035616,2]
[358964816,1745592646854,-500.0,0.00035616,2]
[358964818,1745592646865,-500.0,0.00035616,2]
[358964820,1745592646874,-500.0,0.00035616,2]
[358964822,1745592646884,-500.0,0.00035616,2]
[358964824,1745592646894,-500.0,0.00035616,2]
[358964826,1745592646905,-500.0,0.00035616,2]
[358964828,1745592646915,-500.0,0.00035616,2]
[358964830,1745592646925,-500.0,0.00035616,2]
[358964832,1745592646935,-487.4,0.00035616,2]
[358964834,1745592646944,-599.09,0.00035616,2]
[358964836,1745592646955,-500.0,0.00035616,2]
[358964839,1745592646965,-500.0,0.00035616,2]
[358964841,1745592646974,-946.68,0.00035616,2]
[358964843,1745592646984,-867.74,0.00035616,2]
[358964845,1745592646994,-537.3,0.00035616,2]
[358964847,1745592647006,-567.8,0.00035616,2]
[358964849,1745592647015,-1241.27,0.00035616,2]
[358964851,1745592647025,-500.0,0.00035616,2]
[358964863,1745592647126,-800.86,0.00035616,2]
[358964864,1745592647136,-500.0,0.00035616,2]
[358964865,1745592647145,-500.0,0.00035616,2]
[358964866,1745592647155,-612.16100398,0.00035616,2]
[358964867,1745592647164,-500.0,0.00035616,2]
[358964868,1745592647174,-845.36,0.00035616,2]
[358964869,1745592647183,-500.0,0.00035616,2]
[358964870,1745592647193,-500.0,0.00035616,2]
[358964871,1745592647203,-914.25,0.00035616,2]
[358964872,1745592647212,-568.79,0.00035616,2]
[358964873,1745592647221,-500.0,0.00035616,2]
[358964874,1745592647230,-557.85,0.00035616,2]
[358964875,1745592647240,-500.0,0.00035616,2]
[358964876,1745592647250,-582.90857141,0.00035616,2]
[358964878,1745592647259,-500.0,0.00035616,2]
[358964880,1745592647268,-590.16,0.00035616,2]
[358964882,1745592647278,-286.50340961,0.00035616,2]
[358964884,1745592647287,-1990.17,0.00035616,2]
[358964886,1745592647296,-503.59,0.00035616,2]
[358964888,1745592647305,-500.0,0.00035616,2]
[358964890,1745592647315,-500.0,0.00035616,2]
[358964892,1745592647324,-516.84,0.00035616,2]
[358964894,1745592647334,-500.0,0.00035616,2]
[358964896,1745592647343,-500.0,0.00035616,2]
[358964898,1745592647352,-500.0,0.00035616,2]
[358964900,1745592647361,-976.69,0.00035616,2]
[358964902,1745592647371,-500.0,0.00035616,2]
[358964904,1745592647380,-500.0,0.00035616,2]
[358964906,1745592647389,-500.0,0.00035616,2]
[358964908,1745592647398,-571.69,0.00035616,2]
[358964910,1745592647409,-500.0,0.00035616,2]
[358964912,1745592647419,-500.0,0.00035616,2]
[358964914,1745592647428,-500.0,0.00035616,2]
[358964916,1745592647437,-1197.17,0.00035616,2]
[358964918,1745592647447,-754.47,0.00035616,2]
[358964920,1745592647457,-912.8,0.00035616,2]
[358964922,1745592647466,-500.0,0.00035616,2]
[358964924,1745592647475,-500.0,0.00035616,2]
[358964926,1745592647484,-535.33299573,0.00035616,2]
[358964928,1745592647494,-500.0,0.00035616,2]
[358964930,1745592647503,-537.97,0.00035616,2]
[358964932,1745592647513,-573.41642355,0.00035616,2]
[358964934,1745592647524,-500.0,0.00035616,2]
[358964937,1745592647533,-500.0,0.00035616,2]
[358964938,1745592647542,-500.0,0.00035616,2]
[358964940,1745592647551,-1021.12,0.00035616,2]
[358964942,1745592647562,-500.0,0.00035616,2]
[358964944,1745592647571,-606.03,0.00035616,2]
[358964946,1745592647580,-500.0,0.00035616,2]
[358964948,1745592647590,-500.0,0.00035616,2]
[358964950,1745592647599,-500.0,0.00035616,2]
[358964952,1745592647609,-500.0,0.00035616,2]
[358964954,1745592647621,-500.0,0.00035616,2]
[358964956,1745592647630,-500.0,0.00035616,2]
[358964959,1745592647640,-500.0,0.00035616,2]
[358964960,1745592647650,-570.94,0.00035616,2]
[358964962,1745592647661,-500.0,0.00035616,2]
[358964965,1745592647670,-501.98,0.00035616,2]
[358964967,1745592647680,-500.0,0.00035616,2]
[358964969,1745592647691,-500.0,0.00035616,2]
[358964971,1745592647700,-500.0,0.00035616,2]
[358964973,1745592647710,-500.0,0.00035616,2]
[358964975,1745592647719,-500.0,0.00035616,2]
[358964977,1745592647730,-500.0,0.00035616,2]
[358964979,1745592647739,-598.35,0.00035616,2]
[358964981,1745592647749,-500.0,0.00035616,2]
[358964983,1745592647759,-500.0,0.00035616,2]
[358964985,1745592647769,-1016.95,0.00035616,2]
[358964987,1745592647778,-500.0,0.00035616,2]
[358964989,1745592647788,-500.0,0.00035616,2]
[358964991,1745592647797,-500.0,0.00035616,2]
[358964993,1745592647806,-500.0,0.00035616,2]
[358964995,1745592647817,-500.0,0.00035616,2]
[358964997,1745592647827,-500.0,0.00035616,2]
[358964999,1745592647836,-500.0,0.00035616,2]
[358965001,1745592647845,-500.0,0.00035616,2]
[358965003,1745592647854,-500.0,0.00035616,2]
[358965005,1745592647863,-500.0,0.00035616,2]
[358965007,1745592647873,-150.0,0.00035616,2]
[358965009,1745592647882,-500.0,0.00035616,2]
[358965011,1745592647892,-161.92,0.00035616,2]
[358965013,1745592647902,-500.0,0.00035616,2]
[358965015,1745592647911,-500.0,0.00035616,2]
[358965017,1745592647920,-979.53,0.00035616,2]
[358965019,1745592647930,-500.0,0.00035616,2]
[358965021,1745592647939,-519.56,0.00035616,2]
[358965023,1745592647949,-500.84,0.00035616,2]
[358965025,1745592647958,-500.0,0.00035616,2]
[358965027,1745592647968,-500.0,0.00035616,2]
[358965029,1745592647978,-328.52483029,0.00035616,2]
[358965031,1745592647987,-500.0,0.00035616,2]
[358965033,1745592647996,-634.52,0.00035616,2]
[358965035,1745592648006,-500.0,0.00035616,2]
[358965037,1745592648015,-894.82,0.00035616,2]
[358965039,1745592648024,-500.0,0.00035616,2]
[358965041,1745592648033,-749.03,0.00035616,2]
[358965043,1745592648043,-1003.54,0.00035616,2]
[358965045,1745592648052,-751.67,0.00035616,2]
[358965047,1745592648062,-923.62,0.00035616,2]
[358965049,1745592648072,-1037.08,0.00035616,2]
[358965051,1745592648082,-500.0,0.00035616,2]
[358965053,1745592648092,-510.89124661,0.00035616,2]
[358965055,1745592648101,-500.0,0.00035616,2]
[358965057,1745592648111,-500.0,0.00035616,2]
[358965060,1745592648121,-500.0,0.00035616,2]
[358965062,1745592648130,-500.0,0.00035616,2]
[358965064,1745592648140,-500.0,0.00035616,2]
[358965066,1745592648150,-500.0,0.00035616,2]
[358965068,1745592648160,-500.0,0.00035616,2]
[358965070,1745592648169,-776.57,0.00035616,2]
[358965072,1745592648180,-214.57028273,0.00035616,2]
[358965074,1745592648190,-305.15924828,0.00035616,2]
[358965076,1745592648199,-886.34,0.00035616,2]
[358965078,1745592648209,-500.0,0.00035616,2]
[358965080,1745592648219,-670.94,0.00035616,2]
[358965082,1745592648229,-548.45,0.00035616,2]
[358965084,1745592648241,-500.0,0.00035616,2]
[358965086,1745592648251,-500.0,0.00035616,2]
[358965088,1745592648260,-1080.06,0.00035616,2]
[358965090,1745592648270,-500.0,0.00035616,2]
[358965092,1745592648281,-531.25756807,0.00035616,2]
[358965094,1745592648291,-1055.57,0.00035616,2]
[358965096,1745592648300,-585.32,0.00035616,2]
[358965098,1745592648309,-726.62,0.00035616,2]
[358965100,1745592648321,-500.0,0.00035616,2]
[358965102,1745592648330,-500.0,0.00035616,2]
[358965104,1745592648340,-500.0,0.00035616,2]
[358965106,1745592648349,-500.0,0.00035616,2]
[358965108,1745592648359,-1095.72,0.00035616,2]
[358965110,1745592648369,-500.0,0.00035616,2]
[358965112,1745592648378,-500.0,0.00035616,2]
[358965114,1745592648388,-500.0,0.00035616,2]
[358965116,1745592648398,-500.0,0.00035616,2]
[358965118,1745592648407,-803.57,0.00035616,2]
[358965120,1745592648416,-500.0,0.00035616,2]
[358965122,1745592648425,-608.82614591,0.00035616,2]